bitfinex-derivatives/quotes_BTCF0:USTF0_20250922
["timestamp","ask_amount","ask_price","bid_price","bid_amount"]
[1758568394957,1.25846917,112630.0,112620.0,0.7891697]
[1758568395564,1.25846917,112630.0,112620.0,1.0817662]
[1758568395965,0.44294917,112630.0,112620.0,1.0817662]
[1758568396166,1.29029703,112630.0,112620.0,1.0817662]
[1758568396465,0.47477703,112630.0,112620.0,1.0817662]
[1758568396662,0.87715087,112630.0,112620.0,1.0817662]
[1758568396969,0.06203087,112630.0,112620.0,1.6243627]
[1758568397264,0.87715087,112630.0,112620.0,1.6243627]
[1758568397464,0.06203087,112630.0,112620.0,1.6243627]
[1758568398267,0.09385873,112630.0,112620.0,1.6243627]
[1758568400269,0.38645523,112630.0,112620.0,1.3317662]
[1758568401167,0.47517703,112630.0,112620.0,1.3317662]
[1758568402578,0.18258053,112630.0,112620.0,1.0391697]
[1758568407174,0.18257658,112630.0,112620.0,1.0391697]
[1758568408273,0.15074872,112630.0,112620.0,1.0391697]
[1758568414771,0.06202692,112630.0,112620.0,1.0391697]
[1758568415474,0.06202692,112630.0,112620.0,1.42932443]
[1758568415670,0.06202692,112630.0,112620.0,1.0391697]
[1758568415875,0.06202692,112630.0,112620.0,1.42932443]
[1758568419281,0.06202692,112630.0,112620.0,1.17932443]
[1758568423881,0.06202692,112630.0,112620.0,0.7891697]
[1758568424179,0.06202692,112630.0,112620.0,1.17932443]
[1758568431376,0.02650692,112630.0,112620.0,1.19160443]
[1758568431583,0.02650692,112630.0,112620.0,1.44160443]
[1758568431783,0.02610692,112630.0,112620.0,1.44160443]
[1758568431983,0.02650692,112630.0,112620.0,1.44160443]
[1758568433785,2e-08,112630.0,112620.0,1.44160443]
[1758568433982,0.49501142,112660.0,112650.0,0.108346]
[1758568434175,0.49501142,112660.0,112650.0,0.84850073]
[1758568434377,0.14947042,112660.0,112650.0,0.84850073]
[1758568435178,0.24716862,112660.0,112650.0,0.461346]
[1758568435371,0.21534076,112660.0,112650.0,0.461346]
[1758568435775,0.21634076,112660.0,112650.0,0.461346]
[1758568438276,0.24816862,112660.0,112650.0,0.461346]
[1758568439176,0.15947042,112660.0,112650.0,0.461346]
[1758568439375,0.15947042,112660.0,112650.0,1.21230073]
[1758568439886,0.24816862,112660.0,112650.0,1.21230073]
[1758568440383,0.24816862,112660.0,112650.0,0.461346]
[1758568440581,0.63832335,112660.0,112650.0,0.461346]
[1758568442884,0.24816862,112660.0,112650.0,0.461346]
[1758568444183,1.03090076,112660.0,112650.0,0.461346]
[1758568445791,1.05390468,112660.0,112650.0,0.461346]
[1758568447692,1.05378468,112660.0,112650.0,0.461346]
[1758568447893,0.15064648,112660.0,112650.0,0.85150073]
[1758568448090,0.23934468,112660.0,112650.0,0.85150073]
[1758568450393,0.23934468,112660.0,112650.0,0.461346]
[1758568450600,0.23934468,112660.0,112650.0,0.822146]
[1758568453896,0.23934468,112660.0,112650.0,1.21230073]
[1758568454093,0.23934468,112660.0,112650.0,0.822146]
[1758568461390,1.05346468,112660.0,112650.0,0.822146]
[1758568462294,0.23934468,112660.0,112650.0,0.822146]
[1758568462496,0.15064648,112660.0,112650.0,0.822146]
[1758568462696,0.12866648,112660.0,112650.0,1.21230073]
[1758568462894,0.11497648,112660.0,112650.0,1.21230073]
[1758568463091,0.11457648,112660.0,112650.0,1.21230073]
[1758568463603,0.12766648,112660.0,112650.0,1.21230073]
[1758568464699,0.14952648,112660.0,112650.0,1.11457355]
[1758568465807,0.53065223,112660.0,112650.0,1.11457355]
[1758568466195,0.23822468,112660.0,112650.0,1.11457355]
[1758568466400,0.14952648,112660.0,112650.0,1.11457355]
[1758568467206,0.14952648,112660.0,112650.0,1.92857355]
[1758568468602,0.14952648,112660.0,112650.0,1.11457355]
[1758568469100,0.14952648,112660.0,112650.0,1.92853355]
[1758568469501,0.53065223,112660.0,112650.0,1.636106]
[1758568469703,0.53065223,112660.0,112650.0,1.11457355]
[1758568470102,0.23822468,112660.0,112650.0,0.822146]
[1758568470298,0.82307978,112660.0,112650.0,0.37264]
[1758568470502,0.85490764,112660.0,112650.0,0.421346]
[1758568471210,0.53065223,112660.0,112650.0,0.421346]
[1758568471808,0.53065223,112660.0,112650.0,0.71377355]
[1758568473909,0.56248009,112660.0,112650.0,0.71377355]
[1758568475310,0.27005254,112660.0,112650.0,0.71377355]
[1758568475510,0.27005254,112660.0,112650.0,0.421346]
[1758568475706,0.56248009,112660.0,112650.0,0.421346]
[1758568475906,0.56248009,112660.0,112650.0,0.71377355]
[1758568476711,1.37632009,112660.0,112650.0,0.71377355]
[1758568479008,1.08385254,112660.0,112650.0,0.71377355]
[1758568479209,1.37588009,112660.0,112650.0,0.71377355]
[1758568479410,1.37628009,112660.0,112650.0,0.71377355]
[1758568479911,0.56248009,112660.0,112650.0,0.71377355]
[1758568480308,0.56248009,112660.0,112650.0,1.07457355]
[1758568481207,0.56248009,112660.0,112650.0,1.07457365]
[1758568482312,0.27005254,112660.0,112650.0,1.07457365]
[1758568482510,0.56248009,112660.0,112650.0,1.07457365]
[1758568483211,1.37624009,112660.0,112650.0,1.07457365]
[1758568484117,1.37624009,112660.0,112650.0,0.7821461]
[1758568484308,1.37624009,112660.0,112650.0,1.07457365]
[1758568486516,1.37620009,112660.0,112650.0,1.07457365]
[1758568487620,1.37620009,112660.0,112650.0,0.7821461]
[1758568487811,1.37620009,112660.0,112650.0,1.07457365]
[1758568488524,1.0997002,112660.0,112650.0,1.07457365]
[1758568488728,1.39212775,112660.0,112650.0,1.07457365]
[1758568488926,1.39204775,112660.0,112650.0,1.07457365]
[1758568489119,1.37617408,112660.0,112650.0,1.07457365]
[1758568490532,1.08374653,112660.0,112650.0,1.07457365]
[1758568490723,1.37617408,112660.0,112650.0,1.07457365]
[1758568495236,1.34429223,112660.0,112650.0,1.07457365]
[1758568495836,1.05186468,112660.0,112650.0,1.07457355]
[1758568496032,1.34429223,112660.0,112650.0,1.07457355]
[1758568498338,1.37618452,112660.0,112650.0,1.07457355]
[1758568499633,0.56254452,112660.0,112650.0,1.07457355]
[1758568499939,1.37606452,112660.0,112650.0,1.07457355]
[1758568500239,1.37606452,112660.0,112650.0,0.782146]
[1758568500425,1.37606452,112660.0,112650.0,1.07457355]
[1758568501245,1.37606452,112660.0,112650.0,0.98586755]
[1758568501740,0.56254452,112660.0,112650.0,1.07457355]
[1758568501934,1.37594452,112660.0,112650.0,1.07457355]
[1758568502838,1.37594452,112660.0,112650.0,0.98586755]
[1758568503033,1.37594452,112660.0,112650.0,1.07457355]
[1758568506149,0.56254452,112660.0,112650.0,1.07457355]
[1758568506339,0.27011697,112660.0,112650.0,1.07457355]
[1758568506645,0.20367468,112660.0,112650.0,1.07457355]
[1758568507043,0.14686877,112660.0,112650.0,1.6170011]
[1758568507237,0.11457648,112660.0,112650.0,1.6170011]
[1758568507547,0.11497648,112660.0,112650.0,1.6170011]
[1758568508845,0.10588272,112660.0,112650.0,1.6170011]
[1758568513144,0.03340392,112660.0,112650.0,1.91831437]
[1758568513749,0.03300392,112660.0,112650.0,1.91831437]
[1758568513948,0.03340392,112660.0,112650.0,1.91831437]
[1758568514144,0.03340392,112660.0,112650.0,1.62588682]
[1758568514339,0.0104,112660.0,112650.0,1.62588682]
[1758568514544,0.0104,112660.0,112650.0,1.91831437]
[1758568514852,0.0104,112660.0,112650.0,1.62588682]
[1758568516153,0.0104,112660.0,112650.0,1.91831437]
[1758568516650,0.01,112660.0,112650.0,1.91831437]
[1758568516954,0.1249797,112690.0,112680.0,0.1083224]
[1758568517254,0.1568682,112690.0,112680.0,1.3439775]
[1758568517846,0.1572682,112690.0,112680.0,1.3439775]
[1758568518044,0.1632682,112690.0,112680.0,1.3449775]
[1758568518247,0.1628682,112690.0,112680.0,1.3449775]
[1758568518456,0.1632682,112690.0,112680.0,1.3449775]
[1758568518650,0.2345431,112690.0,112680.0,1.3449775]
[1758568518959,0.2495431,112690.0,112680.0,1.3479775]
[1758568521157,0.2495431,112690.0,112680.0,0.7631224]
[1758568521355,0.2495431,112690.0,112680.0,1.3479775]
[1758568521657,0.54197065,112690.0,112680.0,0.7631224]
[1758568521860,0.54197065,112690.0,112680.0,1.3479775]
[1758568522255,0.2495431,112690.0,112680.0,1.3479775]
[1758568522751,0.2495431,112690.0,112680.0,1.05554995]
[1758568523151,0.54197065,112690.0,112680.0,1.05554995]
[1758568523549,0.54197065,112690.0,112680.0,1.3479775]
[1758568523749,0.2495431,112690.0,112680.0,1.3479775]
[1758568523953,0.54197065,112690.0,112680.0,1.3479775]
[1758568524153,0.54197065,112690.0,112680.0,1.05554995]
[1758568524953,0.54197065,112690.0,112680.0,0.67444]
[1758568525160,0.0886906,112670.0,112660.0,0.38044]
[1758568525352,0.0886906,112670.0,112660.0,0.7891385]
[1758568525353,0.43912516,112670.0,112660.0,0.7891385]
[1758568525659,0.43912516,112670.0,112660.0,0.99286755]
[1758568525850,0.41610815,112670.0,112660.0,0.63206755]
[1758568526051,0.43910297,112670.0,112660.0,0.63206755]
[1758568526259,0.43910297,112670.0,112660.0,0.72076605]
[1758568526459,0.43910297,112670.0,112660.0,0.72276605]
[1758568526460,0.44910297,112670.0,112660.0,0.72276605]
[1758568526759,0.15667542,112670.0,112660.0,0.4303385]
[1758568530461,0.15667542,112670.0,112660.0,0.34164]
[1758568531061,0.18856771,112670.0,112660.0,0.34164]
[1758568535976,0.18856771,112670.0,112660.0,0.4303385]
[1758568537172,0.82847464,112670.0,112660.0,0.34164]
[1758568537374,0.1236964,112650.0,112640.0,0.39860905]
[1758568537673,0.56841776,112650.0,112640.0,0.69860905]
[1758568537863,0.17851083,112650.0,112640.0,0.69860905]
[1758568538063,0.53931083,112650.0,112640.0,0.33780905]
[1758568538264,0.92921776,112650.0,112640.0,0.33780905]
[1758568538577,0.89939815,112650.0,112640.0,0.33980905]
[1758568539075,0.89939815,112650.0,112640.0,0.34080905]
[1758568539979,1.71215815,112650.0,112640.0,0.34080905]
[1758568542178,1.78164179,112650.0,112640.0,0.34080905]
[1758568543984,0.96888179,112650.0,112640.0,0.34080905]
[1758568544284,0.21817486,112650.0,112640.0,0.34080905]
[1758568544476,1.03093486,112650.0,112640.0,0.81943018]
[1758568544878,1.03093486,112650.0,112640.0,0.73071598]
[1758568545079,1.03093486,112650.0,112640.0,0.34080905]
[1758568545785,1.03093486,112650.0,112640.0,0.42952325]
[1758568546377,1.03093486,112650.0,112640.0,0.34080905]
[1758568546577,0.21817486,112650.0,112640.0,0.34080905]
[1758568546784,1.03093486,112650.0,112640.0,0.34080905]
[1758568547786,0.21817486,112650.0,112640.0,0.42952325]
[1758568547977,1.03093486,112650.0,112640.0,0.42952325]
[1758568548178,1.03093486,112650.0,112640.0,0.81943018]
[1758568549285,1.03093486,112650.0,112640.0,0.42952325]
[1758568549686,0.21817486,112650.0,112640.0,0.42952325]
[1758568549878,1.03093486,112650.0,112640.0,0.79032325]
[1758568550078,0.21817486,112650.0,112640.0,0.79032325]
[1758568550586,1.03089486,112650.0,112640.0,0.79032325]
[1758568551788,0.21817486,112650.0,112640.0,0.79032325]
[1758568551978,1.03089486,112650.0,112640.0,0.79032325]
[1758568554185,1.03089486,112650.0,112640.0,1.18023018]
[1758568554484,1.03089486,112650.0,112640.0,1.09151598]
[1758568554682,1.03089486,112650.0,112640.0,0.34080905]
[1758568555084,1.42080179,112650.0,112640.0,0.32264]
[1758568555487,1.78160179,112650.0,112640.0,0.303]
[1758568555685,1.78160179,112650.0,112640.0,0.003]
[1758568555686,2.0634214,112650.0,112640.0,0.003]
[1758568556290,2.0634214,112650.0,112640.0,0.02264]
[1758568556793,2.0634214,112650.0,112640.0,0.003]
[1758568558285,1.2507014,112650.0,112640.0,0.003]
[1758568558484,2.0633414,112650.0,112640.0,0.003]
[1758568561488,2.0792512,112650.0,112640.0,0.003]
[1758568561687,2.0792512,112650.0,112620.0,0.3608]
[1758568561688,0.1236799,112620.0,112610.0,0.38064]
[1758568561891,1.34922165,112620.0,112610.0,0.63044]
[1758568562187,0.95931472,112620.0,112610.0,0.63044]
[1758568562392,1.34922165,112620.0,112610.0,0.25]
[1758568562986,0.53758165,112620.0,112610.0,0.255]
[1758568563187,0.54859872,112620.0,112610.0,0.27964]
[1758568563389,0.97129179,112620.0,112610.0,0.27964]
[1758568563597,0.96933179,112620.0,112610.0,0.27464]
[1758568563892,0.97933179,112620.0,112610.0,0.27764]
[1758568564987,0.98133179,112620.0,112610.0,0.27264]
[1758568565187,1.37123872,112620.0,112610.0,0.253]
[1758568565489,1.40301308,112620.0,112610.0,0.27264]
[1758568565786,1.40305308,112620.0,112610.0,0.27264]
[1758568566092,1.40305308,112620.0,112610.0,0.253]
[1758568566291,1.40305308,112620.0,112610.0,0.27264]
[1758568567393,1.76385308,112620.0,112610.0,0.27264]
[1758568569292,1.76385308,112620.0,112610.0,0.253]
[1758568569496,1.76385308,112620.0,112610.0,0.003]
[1758568569497,1.77976813,112620.0,112610.0,0.003]
[1758568571098,0.5772212,112620.0,112610.0,0.003]
[1758568571397,1.77976813,112620.0,112610.0,0.003]
[1758568572793,0.96712813,112620.0,112610.0,0.003]
[1758568572994,1.77976813,112620.0,112610.0,0.003]
[1758568573194,1.73203872,112620.0,112610.0,0.003]
[1758568573393,1.77976813,112620.0,112610.0,0.003]
[1758568574899,0.96712813,112620.0,112610.0,0.003]
[1758568575199,1.77976813,112620.0,112610.0,0.003]
[1758568575702,2.02976813,112620.0,112610.0,0.003]
[1758568576399,0.1250535,112590.0,112580.0,0.48729847]
[1758568576598,0.89020832,112590.0,112580.0,0.68834097]
[1758568576796,0.89020832,112590.0,112580.0,0.67044]
[1758568576797,1.28011525,112590.0,112580.0,0.67044]
[1758568576996,1.28011525,112590.0,112580.0,0.30964]
[1758568577303,0.53795525,112590.0,112580.0,0.30964]
[1758568577498,0.99243126,112590.0,112580.0,0.31004]
[1758568577699,0.56969819,112590.0,112580.0,0.31204]
[1758568577898,1.35059525,112590.0,112580.0,0.31204]
[1758568578097,0.53995525,112590.0,112580.0,0.31604]
[1758568578301,1.35259525,112590.0,112580.0,0.31604]
[1758568578500,0.57169819,112590.0,112580.0,0.31604]
[1758568578704,1.38437819,112590.0,112580.0,0.31604]
[1758568579606,1.45499218,112590.0,112580.0,0.31604]
[1758568579803,0.64231218,112590.0,112580.0,0.31604]
[1758568580002,1.45499218,112590.0,112580.0,0.31604]
[1758568580306,1.42324924,112590.0,112580.0,0.31604]
[1758568580498,1.03334231,112590.0,112580.0,0.31604]
[1758568580699,0.61056924,112590.0,112580.0,0.31604]
[1758568580902,1.42324924,112590.0,112580.0,0.31604]
[1758568581206,1.42324924,112590.0,112580.0,0.2964]
[1758568581406,1.42324924,112590.0,112580.0,0.0064]
[1758568581603,1.81579218,112590.0,112580.0,0.0064]
[1758568581804,2.06579218,112590.0,112580.0,0.0064]
[1758568582005,0.1250693,112570.0,112560.0,0.38044]
[1758568582202,0.96074412,112570.0,112560.0,0.73044]
[1758568582401,0.96074412,112570.0,112560.0,0.73084]
[1758568582602,0.14806412,112570.0,112560.0,0.8196172]
[1758568582803,0.96074412,112570.0,112560.0,0.8196172]
[1758568582999,0.96074412,112570.0,112560.0,0.73084]
[1758568583907,0.96174412,112570.0,112560.0,0.73584]
[1758568584108,0.96474412,112570.0,112560.0,0.74584]
[1758568584609,1.35465105,112570.0,112560.0,0.74584]
[1758568584804,0.54197105,112570.0,112560.0,0.74584]
[1758568585007,1.35365105,112570.0,112560.0,0.74084]
[1758568585306,1.38435791,112570.0,112560.0,0.73584]
[1758568585906,0.99445098,112570.0,112560.0,0.73584]
[1758568586108,0.18177098,112570.0,112560.0,0.73584]
[1758568586708,0.99445098,112570.0,112560.0,0.73584]
[1758568586899,0.99445098,112570.0,112560.0,0.73384]
[1758568587100,1.38835791,112570.0,112560.0,0.3534]
[1758568587301,0.99845098,112570.0,112560.0,0.0034]
[1758568587501,1.38835791,112570.0,112560.0,0.0034]
[1758568587711,1.38835791,112570.0,112560.0,0.003]
[1758568587897,1.74915791,112570.0,112560.0,0.0034]
[1758568588097,1.99915791,112570.0,112560.0,0.0034]
[1758568588303,2.01518046,112570.0,112560.0,0.0034]
[1758568588499,1.62527353,112570.0,112560.0,0.0034]
[1758568588708,2.21145257,112570.0,112560.0,0.003]
[1758568588898,2.21145257,112570.0,112560.0,0.0034]
[1758568589102,2.21145257,112570.0,112560.0,0.003]
[1758568589408,0.1256851,112550.0,112540.0,0.0008]
[1758568589606,1.27519482,112550.0,112540.0,0.0008]
[1758568589811,0.125693,112540.0,112530.0,0.38044]
[1758568590108,0.44177734,112540.0,112530.0,0.73044]
[1758568590310,0.44177734,112540.0,112530.0,1.02352952]
[1758568590507,0.44177734,112540.0,112530.0,0.73084]
[1758568590712,0.44177734,112540.0,112530.0,0.3504]
[1758568591210,0.73486686,112540.0,112530.0,0.01]
[1758568591411,1.54758686,112540.0,112530.0,0.0104]
[1758568591613,1.55758686,112540.0,112530.0,0.0134]
[1758568591810,1.27335971,112540.0,112530.0,0.0134]
[1758568592011,1.27335971,112540.0,112530.0,0.03304]
[1758568592315,1.92724923,112540.0,112530.0,0.0134]
[1758568592610,1.92724923,112540.0,112530.0,0.0034]
[1758568593207,2.20892759,112540.0,112530.0,0.003]
[1758568593406,2.21092759,112540.0,112530.0,0.003]
[1758568593803,2.21092759,112540.0,112530.0,0.0034]
[1758568594007,2.28033185,112540.0,112530.0,0.0034]
[1758568594611,1.46753185,112540.0,112530.0,0.0034]
[1758568594912,2.28033185,112540.0,112530.0,0.0034]
[1758568595213,1.46753185,112540.0,112530.0,0.0034]
[1758568595413,1.43585349,112540.0,112530.0,0.0034]
[1758568595613,2.24865349,112540.0,112530.0,0.0034]
[1758568596013,0.84967445,112540.0,112530.0,0.02304]
[1758568596313,2.24865349,112540.0,112530.0,0.0034]
[1758568597615,0.1257088,112520.0,112510.0,0.37876141]
[1758568597809,1.54776266,112520.0,112510.0,0.46837801]
[1758568598010,0.73488266,112520.0,112510.0,0.46837801]
[1758568598213,0.96158362,112520.0,112510.0,0.3608]
[1758568598412,1.54776266,112520.0,112510.0,0.3612]
[1758568598819,0.73488266,112520.0,112510.0,0.4500166]
[1758568599017,1.54784266,112520.0,112510.0,0.4500166]
[1758568599221,1.54784266,112520.0,112510.0,0.3632]
[1758568599622,1.54888266,112520.0,112510.0,0.4716566]
[1758568599927,1.16722434,112520.0,112510.0,0.76474612]
[1758568600116,1.17022434,112520.0,112510.0,0.4746566]
[1758568600322,1.17062434,112520.0,112510.0,0.4746566]
[1758568600516,0.06289482,112520.0,112510.0,0.76774612]
[1758568600721,1.17066434,112520.0,112510.0,0.76774612]
[1758568601317,1.17066434,112520.0,112510.0,0.4746566]
[1758568601524,1.25947304,112520.0,112510.0,0.38584]
[1758568602227,0.96638352,112520.0,112510.0,0.38584]
[1758568602430,1.25947304,112520.0,112510.0,0.3662]
[1758568602615,0.96638352,112520.0,112510.0,0.3662]
[1758568602820,1.26099304,112520.0,112510.0,0.38584]
[1758568603126,1.26099304,112520.0,112510.0,0.67892952]
[1758568603327,1.26099304,112520.0,112510.0,0.38584]
[1758568603821,0.44479304,112520.0,112510.0,0.02504]
[1758568604024,0.06289482,112520.0,112510.0,0.1138567]
[1758568604226,1.26095314,112520.0,112510.0,0.1138567]
[1758568604726,1.17214434,112520.0,112510.0,0.1138567]
[1758568605622,0.35598434,112520.0,112510.0,0.1138567]
[1758568605822,1.17234434,112520.0,112510.0,0.4746567]
[1758568606635,1.17234434,112520.0,112510.0,0.76774622]
[1758568607132,1.17234434,112520.0,112510.0,0.4746567]
[1758568607334,1.17234434,112520.0,112510.0,0.76774622]
[1758568607634,1.26115314,112520.0,112510.0,0.76774622]
[1758568608141,1.17234434,112520.0,112510.0,0.76774622]
[1758568608535,1.26115314,112520.0,112510.0,0.4746567]
[1758568608930,1.26115314,112520.0,112510.0,0.76774622]
[1758568609531,1.26115314,112520.0,112510.0,0.4746567]
[1758568609732,0.96806362,112520.0,112510.0,0.76774622]
[1758568609933,1.26115314,112520.0,112510.0,0.76774622]
[1758568610433,1.26115314,112520.0,112510.0,0.4746567]
[1758568610633,1.26115314,112520.0,112510.0,0.76774622]
[1758568611435,1.46543386,112520.0,112510.0,0.76774622]
[1758568611833,1.46543386,112520.0,112510.0,0.4746567]
[1758568612338,0.06289482,112520.0,112510.0,0.76774622]
[1758568612539,1.17322434,112520.0,112510.0,0.76774622]
[1758568612837,1.26203304,112520.0,112510.0,0.4746567]
[1758568613027,1.55512256,112520.0,112510.0,0.4746567]
[1758568613226,1.26203304,112520.0,112510.0,0.76774622]
[1758568613436,1.20483418,112520.0,112510.0,0.76774622]
[1758568613739,0.91174466,112520.0,112510.0,0.76774622]
[1758568613938,1.20483418,112520.0,112510.0,0.76774622]
[1758568614134,0.09450466,112520.0,112510.0,0.76774622]
[1758568614341,0.06289482,112520.0,112510.0,0.79774622]
[1758568614541,0.88237482,112520.0,112510.0,0.79774622]
[1758568615039,0.88228925,112520.0,112510.0,0.79774622]
[1758568615234,1.26418757,112520.0,112510.0,0.5046567]
[1758568615436,1.00270789,112520.0,112510.0,0.76774622]
[1758568615639,1.29579741,112520.0,112510.0,0.76774622]
[1758568615842,1.29579741,112520.0,112510.0,0.4746567]
[1758568616140,0.91389909,112520.0,112510.0,0.76774622]
[1758568616342,1.20698861,112520.0,112510.0,0.76774622]
[1758568616643,0.91389909,112520.0,112510.0,0.4746567]
[1758568616847,1.20698861,112520.0,112510.0,0.76774622]
[1758568617144,1.29579741,112520.0,112510.0,0.76774622]
[1758568617641,0.91389909,112520.0,112510.0,0.76774622]
[1758568617935,1.20698861,112520.0,112510.0,0.76774622]
[1758568618140,0.38750861,112520.0,112510.0,0.76774622]
[1758568618329,1.17585877,112520.0,112510.0,0.76774622]
[1758568618535,1.22358818,112520.0,112510.0,0.76774622]
[1758568619036,0.93053866,112520.0,112510.0,0.4746567]
[1758568619339,1.31243698,112520.0,112510.0,0.76774622]
[1758568619943,1.01934746,112520.0,112510.0,0.76774622]
[1758568620244,1.22362818,112520.0,112510.0,0.76774622]
[1758568620536,1.31243688,112520.0,112510.0,0.76774622]
[1758568621444,1.31243688,112520.0,112510.0,0.4746567]
[1758568621839,1.01934736,112520.0,112510.0,0.76774622]
[1758568622232,0.94658989,112520.0,112510.0,0.76774622]
[1758568622436,1.23967941,112520.0,112510.0,0.76774622]
[1758568623035,1.23959941,112520.0,112510.0,0.76774622]
[1758568623236,0.94666989,112520.0,112510.0,0.4746567]
[1758568623436,1.32856811,112520.0,112510.0,0.76774622]
[1758568623643,1.32856811,112520.0,112510.0,0.4746567]
[1758568623847,1.32856811,112520.0,112510.0,0.76774622]
[1758568624037,0.94666989,112520.0,112510.0,0.76774622]
[1758568624343,1.17597877,112520.0,112510.0,0.76774622]
[1758568625243,1.17597877,112520.0,112510.0,0.80774622]
[1758568625446,1.26478757,112520.0,112510.0,0.80774622]
[1758568626549,1.26478757,112520.0,112510.0,0.5146567]
[1758568626944,1.31252805,112520.0,112510.0,0.80774622]
[1758568627344,1.26478757,112520.0,112510.0,0.80774622]
[1758568627649,1.26478757,112520.0,112510.0,0.80774612]
[1758568628350,0.49247195,112520.0,112510.0,0.80774612]
[1758568628649,1.31275195,112520.0,112510.0,0.80774612]
[1758568628851,0.93081363,112520.0,112510.0,1.10774612]
[1758568629038,0.05775475,112520.0,112510.0,2.01163564]
[1758568629548,0.02590925,112520.0,112510.0,2.01163564]
[1758568630950,0.02590925,112520.0,112510.0,1.4254566]
[1758568631247,0.02590925,112520.0,112510.0,2.01163564]
[1758568631746,0.02590925,112520.0,112510.0,2.83183564]
[1758568632346,0.02590925,112520.0,112510.0,2.2456566]
[1758568632546,0.02590925,112520.0,112510.0,2.83183564]
[1758568633351,0.02590925,112520.0,112510.0,3.12492516]
[1758568633648,0.12363213,112540.0,112530.0,0.1084409]
[1758568633849,0.12363213,112540.0,112530.0,2.20605994]
[1758568634250,0.12363213,112540.0,112530.0,1.91297042]
[1758568634442,0.09178663,112540.0,112530.0,1.91297042]
[1758568634638,0.07818663,112540.0,112530.0,2.20605994]
[1758568634843,0.90929088,112550.0,112540.0,0.108433]
[1758568635046,0.87744538,112550.0,112540.0,1.34541204]
[1758568635241,0.88637954,112550.0,112540.0,1.34541204]
[1758568636047,0.98916464,112550.0,112540.0,1.34941204]
[1758568636543,0.87791954,112550.0,112540.0,1.34941204]
[1758568637554,0.88091954,112550.0,112540.0,1.35041204]
[1758568638255,0.03774538,112550.0,112540.0,1.35041204]
[1758568638751,0.10817849,112550.0,112540.0,1.35041204]
[1758568638956,0.03774538,112550.0,112540.0,1.60041204]
[1758568639252,0.017,112550.0,112540.0,2.73302302]
[1758568640548,0.017,112550.0,112540.0,2.73298302]
[1758568640748,0.017,112550.0,112540.0,1.6184935]
[1758568641056,0.017,112550.0,112540.0,2.4398935]
[1758568641252,0.017,112550.0,112540.0,1.6184935]
[1758568641457,0.017,112550.0,112540.0,2.4398135]
[1758568641661,0.017,112550.0,112540.0,2.4398935]
[1758568644761,0.017,112550.0,112540.0,1.85331446]
[1758568644960,0.017,112550.0,112540.0,2.4394935]
[1758568647260,0.017,112550.0,112540.0,2.73258302]
[1758568648759,0.017,112550.0,112540.0,2.24389939]
[1758568649556,0.017,112550.0,112540.0,1.42289939]
[1758568649762,0.017,112550.0,112540.0,2.24345939]
[1758568650955,0.017,112550.0,112540.0,1.03231446]
[1758568651157,0.0302,112550.0,112540.0,2.24309939]
[1758568652354,0.017,112550.0,112540.0,2.24309939]
[1758568653262,0.03945505,112550.0,112540.0,1.42289939]
[1758568653463,0.05265505,112550.0,112540.0,2.24413939]
[1758568654062,0.03945505,112550.0,112540.0,2.24413939]
[1758568655653,0.017,112550.0,112540.0,2.24413939]
[1758568657064,0.017,112550.0,112540.0,2.24377939]
[1758568657669,0.017,112550.0,112540.0,2.24373939]
[1758568659272,0.017,112550.0,112540.0,1.99373939]
[1758568661672,0.017,112550.0,112540.0,2.63432432]
[1758568661881,0.02104328,112580.0,112570.0,0.49899403]
[1758568662072,0.09105295,112580.0,112570.0,2.02067403]
[1758568662377,0.04376744,112580.0,112570.0,2.02063403]
[1758568662577,0.05275074,112580.0,112570.0,1.6300491]
[1758568662977,0.08883074,112580.0,112570.0,1.19979403]
[1758568663178,0.18559194,112580.0,112570.0,2.02199403]
[1758568663768,0.18559194,112580.0,112570.0,1.20079403]
[1758568664076,0.20359194,112580.0,112570.0,2.02487403]
[1758568664478,0.06976744,112580.0,112570.0,2.03715403]
[1758568664777,0.04536744,112580.0,112570.0,2.03515403]
[1758568664972,0.12960789,112580.0,112570.0,2.02259403]
[1758568665180,0.12960789,112580.0,112570.0,2.02255403]
[1758568665371,0.05996744,112580.0,112570.0,2.02255403]
[1758568667578,0.14872864,112580.0,112570.0,2.02227403]
[1758568667770,0.05996744,112580.0,112570.0,2.02227403]
[1758568669978,0.13117708,112580.0,112570.0,2.02227403]
[1758568672782,0.02572416,112580.0,112570.0,2.27227403]
[1758568673182,0.02532416,112580.0,112570.0,2.27227403]
[1758568673384,0.02572416,112580.0,112570.0,2.27227403]
[1758568673777,0.02572416,112580.0,112570.0,1.45179403]
[1758568674679,0.02572416,112580.0,112570.0,2.27263403]
[1758568675477,0.02572416,112580.0,112570.0,2.27259403]
[1758568676189,0.02572416,112580.0,112570.0,2.27255403]
[1758568680886,0.02572416,112580.0,112570.0,2.27179403]
[1758568681380,0.02572416,112580.0,112570.0,2.27191403]
[1758568681586,0.12782476,112580.0,112570.0,2.27183403]
[1758568681987,0.11448476,112580.0,112570.0,2.27183403]
[1758568682285,0.02572416,112580.0,112570.0,2.27183403]
[1758568682487,0.02572416,112580.0,112570.0,2.02183403]
[1758568682880,0.02572416,112580.0,112570.0,1.6312491]
[1758568683183,0.03906416,112580.0,112570.0,2.02183403]
[1758568683485,0.02572416,112580.0,112570.0,2.02183403]
[1758568684285,0.40038476,112580.0,112570.0,1.11302493]
[1758568684592,0.40038476,112580.0,112570.0,1.6312885]
[1758568684891,0.40038476,112580.0,112570.0,1.6316885]
[1758568685686,0.40038476,112580.0,112570.0,2.02227343]
[1758568687192,0.02572416,112580.0,112570.0,2.02227343]
[1758568688689,0.02532416,112580.0,112570.0,2.02227343]
[1758568688888,0.02572416,112580.0,112570.0,2.02227343]
[1758568689090,0.02572416,112580.0,112570.0,2.27227343]
[1758568689290,0.003,112580.0,112570.0,2.27227343]
[1758568689483,0.0034,112580.0,112570.0,2.27227343]
[1758568690691,0.0034,112580.0,112570.0,1.8816885]
[1758568690891,0.0034,112580.0,112570.0,2.27227343]
[1758568692794,0.0034,112580.0,112570.0,2.27275343]
[1758568694793,0.0034,112580.0,112570.0,1.45219343]
[1758568694993,0.0034,112580.0,112570.0,2.27243343]
[1758568695195,0.0034,112580.0,112570.0,2.27235343]
[1758568695492,0.0034,112580.0,112570.0,1.45219343]
[1758568695698,0.0034,112580.0,112570.0,2.27235343]
[1758568695996,0.06219953,112580.0,112570.0,0.8116085]
[1758568696296,0.40096023,112580.0,112570.0,0.8112085]
[1758568696496,0.40096023,112580.0,112570.0,1.6322085]
[1758568697089,0.40096023,112580.0,112570.0,1.6318085]
[1758568697396,0.40096023,112580.0,112570.0,1.6322085]
[1758568697397,0.31219953,112580.0,112570.0,1.6322085]
[1758568697700,0.31219953,112580.0,112570.0,1.20219343]